bitfinex/quotes_SOLUSD_20220211
["timestamp","ask_amount","ask_price","bid_price","bid_amount"]
[1644595358798,18.7286,106.87,106.81,45.90451111]
[1644595359298,14.0486,106.87,106.83,47.78300977]
[1644595359508,4.679,106.89,106.83,47.78300977]
[1644595359705,18.149,106.91,106.83,47.80700977]
[1644595359904,18.149,106.91,106.84,0.024]
[1644595360100,4.679,106.91,106.84,0.024]
[1644595360301,4.679,106.91,106.86,1.31893002]
[1644595360501,83.15300741,106.92,106.86,43.58378277]
[1644595360700,83.15300741,106.92,106.86,1.31893002]
[1644595360901,4.88272666,106.91,106.86,1.31893002]
[1644595361202,4.676,106.9,106.86,1.31893002]
[1644595361402,4.88272666,106.91,106.86,1.31893002]
[1644595361601,4.88272666,106.91,106.85,1.34293002]
[1644595361800,4.88272666,106.91,106.85,1.31893002]
[1644595362001,4.88272666,106.91,106.86,1.31893002]
[1644595362200,9.56072666,106.91,106.86,1.31893002]
[1644595362600,28.14546081,106.91,106.86,1.31893002]
[1644595362802,14.0457,106.89,106.86,1.31893002]
[1644595363003,18.7237,106.89,106.86,1.31893002]
[1644595363805,14.0457,106.89,106.86,1.31893002]
[1644595364404,14.0457,106.89,106.87,1.31893002]
[1644595366408,14.0457,106.89,106.88,1.31893002]
[1644595369914,18.7217,106.89,106.88,1.31893002]
[1644595370116,14.0457,106.89,106.88,1.31893002]
[1644595370514,4.88272666,106.91,106.89,3.03219997]
[1644595370715,4.88272666,106.91,106.9,1.31893002]
[1644595370916,59.98879578,106.97,106.91,39.30648787]
[1644595371113,46.7992,106.95,106.91,39.30648787]
[1644595371316,14.0386,106.96,106.93,1.32964269]
[1644595371915,14.0386,106.96,106.94,3.03219997]
[1644595372516,14.0386,106.96,106.92,1.32964269]
[1644595374218,14.0386,106.96,106.91,36.67722401]
[1644595374419,14.0386,106.96,106.92,1.32964269]
[1644595374621,4.676,106.95,106.89,1.32964269]
[1644595374818,14.0411,106.94,106.89,1.32964269]
[1644595375018,4.676,106.93,106.88,1.32964269]
[1644595375221,15.916,106.96,106.88,1.32964269]
[1644595375419,4.676,106.92,106.88,1.32964269]
[1644595375618,4.676,106.95,106.88,1.35364269]
[1644595375819,14.0427,106.92,106.89,41.19976794]
[1644595376019,14.0427,106.92,106.89,1.32964269]
[1644595376817,14.0427,106.92,106.88,1.35364269]
[1644595377018,14.0427,106.92,106.88,1.32964269]
[1644595377418,18.7187,106.92,106.88,1.32964269]
[1644595378245,14.0427,106.92,106.88,1.32964269]
[1644595378444,18.7187,106.92,106.87,1.32964269]
[1644595378645,14.0427,106.92,106.88,1.32964269]
[1644595379044,14.0427,106.92,106.87,1.32964269]
[1644595379243,18.7187,106.92,106.87,1.32964269]
[1644595379646,14.0427,106.92,106.87,1.32964269]
[1644595380045,14.0464,106.9,106.86,1.35364269]
[1644595380246,14.0464,106.9,106.85,1.32964269]
[1644595380247,45.0,106.89,106.85,1.32964269]
[1644595380450,4.678,106.89,106.84,12.23864269]
[1644595380845,11.24,106.9,106.84,10.909]
[1644595381047,4.678,106.88,106.84,10.909]
[1644595381249,11.24,106.9,106.84,10.909]
[1644595381449,4.678,106.89,106.84,10.909]
[1644595381848,14.0499,106.88,106.84,10.909]
[1644595382450,4.679,106.87,106.84,10.909]
[1644595383151,14.053,106.86,106.81,1.32964269]
[1644595383349,4.68,106.85,106.8,3.42964269]
[1644595383550,15.92,106.86,106.8,2.1]
[1644595383849,11.24,106.86,106.8,2.1]
[1644595384049,14.0543,106.84,106.8,2.1]
[1644595387056,18.7343,106.84,106.8,2.1]
[1644595388756,18.7343,106.84,106.8,45.35666817]
[1644595388958,14.0543,106.84,106.8,45.35666817]
[1644595389258,14.0483,106.86,106.8,47.74033608]
[1644595389458,14.0483,106.86,106.8,2.1]
[1644595389858,4.68,106.85,106.8,2.1]
[1644595390058,46.8311,106.88,106.8,2.1]
[1644595390257,14.0494,106.86,106.8,2.1]
[1644595391457,14.0494,106.86,106.8,1.6]
[1644595392058,14.0494,106.86,106.81,42.11004091]
[1644595392659,14.0494,106.86,106.8,1.6]
[1644595393663,14.0467,106.87,106.81,40.78450204]
[1644595393962,14.0467,106.87,106.81,45.46450204]
[1644595394161,14.0467,106.87,106.81,40.78450204]
[1644595394662,14.0467,106.87,106.8,1.6]
[1644595394861,4.68,106.86,106.8,1.6]
[1644595395063,18.7282,106.86,106.8,1.6]
[1644595395266,14.0482,106.86,106.8,1.6]
[1644595395464,4.68,106.85,106.8,39.24286569]
[1644595395663,14.0482,106.86,106.8,1.624]
[1644595396663,18.726,106.88,106.81,38.06677425]
[1644595396866,14.046,106.88,106.81,38.09077425]
[1644595397066,14.046,106.88,106.82,0.024]
[1644595397264,51.4954,106.91,106.82,0.024]
[1644595398269,14.0433,106.9,106.82,0.024]
[1644595398468,4.679,106.89,106.82,0.024]
[1644595398969,46.8164,106.91,106.82,0.024]
[1644595399768,14.0452,106.88,106.82,0.024]
[1644595399968,4.679,106.87,106.82,0.024]
[1644595401571,18.7254,106.87,106.82,0.024]
[1644595401770,14.0464,106.87,106.82,0.024]
[1644595401973,4.679,106.86,106.82,0.024]
[1644595402172,4.679,106.86,106.8,1.624]
[1644595402377,4.68,106.91,106.8,1.624]
[1644595402574,4.68,106.91,106.81,43.19106743]
[1644595402774,4.68,106.91,106.82,0.024]
[1644595403778,14.047,106.88,106.82,0.024]
[1644595403974,4.679,106.87,106.82,0.024]
[1644595404405,4.679,106.88,106.82,0.024]
[1644595404708,4.679,106.89,106.82,0.024]
[1644595405105,7.06266791,106.89,106.82,0.024]
[1644595405305,14.0496,106.86,106.82,0.024]
[1644595405504,4.679,106.85,106.8,1.6]
[1644595405704,51.7618,106.87,106.81,0.024]
[1644595405905,51.7618,106.87,106.8,1.6]
[1644595406109,54.14546791,106.87,106.81,0.024]
[1644595406506,14.0531,106.84,106.8,0.0241]
[1644595406706,4.68,106.83,106.8,0.0241]
[1644595407110,4.68,106.84,106.8,0.0241]
[1644595407814,14.0568,106.82,106.8,0.0241]
[1644595408008,4.681,106.81,106.8,0.0241]
[1644595408208,46.856,106.83,106.8,0.0241]
[1644595409808,14.0551,106.81,106.8,0.0241]
[1644595410408,14.0551,106.81,106.8,0.0041]
[1644595412012,18.7361,106.81,106.8,0.0041]
[1644595412209,14.0551,106.81,106.8,0.0041]
[1644595413212,18.7361,106.81,106.8,0.0041]
[1644595413612,14.0551,106.81,106.8,0.0041]
[1644595416915,18.7361,106.81,106.8,0.0041]
[1644595418415,32.35976791,106.81,106.76,0.164978]
[1644595422619,0.48,106.79,106.76,0.004978]
[1644595422817,18.747,106.78,106.76,0.004978]
[1644595423021,14.065,106.78,106.76,0.004978]
[1644595423819,4.682,106.81,106.77,6.06439994]
[1644595423820,46.8592,106.81,106.77,6.06439994]
[1644595424020,22.5815,106.83,106.78,48.68954731]
[1644595424223,92.5714,106.85,106.78,48.68954731]
[1644595424224,13.5,106.85,106.78,48.71354731]
[1644595424421,13.5,106.85,106.78,8.643]
[1644595424626,13.5,106.85,106.79,0.024]
[1644595424822,4.68,106.84,106.79,0.024]
[1644595425123,14.0549,106.81,106.76,0.004978]
[1644595425322,4.682,106.8,106.76,0.004978]
[1644595425523,51.7612,106.82,106.76,0.004978]
[1644595425722,65.7412,106.82,106.76,0.004978]
[1644595426226,14.0594,106.79,106.76,0.004978]
[1644595426422,4.682,106.78,106.76,0.004978]
[1644595426827,23.4214,106.79,106.76,0.004978]
[1644595427023,18.662,106.81,106.76,0.004978]
[1644595427324,14.062,106.78,106.76,0.004978]
[1644595428926,18.7458,106.77,106.76,0.004978]
[1644595429227,14.0638,106.77,106.76,0.004978]
[1644595429431,18.7468,106.77,106.76,0.004978]
[1644595429626,19.2268,106.77,106.76,0.004978]
[1644595429828,32.2468,106.77,106.76,0.004978]
[1644595431427,79.2225,106.77,106.76,0.004978]
[1644595432827,74.5395,106.77,106.76,0.004978]
[1644595435629,14.0638,106.77,106.76,0.004978]
[1644595437031,65.049,106.8,106.76,0.004978]
[1644595437032,14.0585,106.78,106.76,0.004978]
[1644595437934,14.0585,106.78,106.77,6.06439994]
[1644595438434,14.0573,106.79,106.77,6.06439994]
[1644595441846,99.536,106.82,106.77,52.48713601]
[1644595442047,41.6128,106.85,106.77,52.48713601]
[1644595442255,41.6128,106.85,106.77,52.51113601]
[1644595442256,23.4308,106.85,106.77,52.51113601]
[1644595442548,14.0507,106.84,106.77,52.51113601]
[1644595442749,14.0507,106.84,106.77,57.19213601]
[1644595443349,14.0507,106.84,106.77,10.76939994]
[1644595443549,4.681,106.83,106.77,10.76939994]
[1644595443750,14.0581,106.82,106.77,10.74539994]
[1644595443949,4.681,106.81,106.77,6.06439994]
[1644595444351,2.38366791,106.84,106.77,6.06439994]
[1644595444352,7.06566791,106.84,106.77,6.06439994]
[1644595444755,7.54566791,106.84,106.77,6.06439994]
[1644595445778,14.0575,106.8,106.77,6.06439994]
[1644595445971,14.0575,106.8,106.77,3.03219997]
[1644595446174,14.0575,106.8,106.76,0.028978]
[1644595446372,14.0575,106.8,106.76,0.004978]
[1644595446772,53.91496791,106.84,106.76,0.004978]
[1644595446975,14.0545,106.81,106.76,0.028978]
[1644595447173,14.0545,106.81,106.76,0.004978]
[1644595447377,14.0545,106.81,106.76,0.028978]
[1644595447585,14.0545,106.81,106.76,0.004978]
[1644595447774,14.0545,106.81,106.76,0.028978]
[1644595447973,14.0545,106.81,106.76,0.004978]
[1644595449274,4.682,106.8,106.76,0.004978]
[1644595449475,14.0588,106.79,106.76,0.004978]
[1644595453580,14.0588,106.79,106.77,6.06439994]
[1644595453802,14.056,106.8,106.77,6.06439994]
[1644595457586,4.682,106.79,106.77,6.06439994]
[1644595457786,18.7402,106.79,106.77,6.06439994]
[1644595457986,14.0582,106.79,106.76,0.004978]
[1644595460692,4.682,106.78,106.76,0.004978]
[1644595460988,14.0624,106.77,106.76,0.004978]
[1644595461389,16.44606791,106.77,106.76,0.004978]
[1644595461589,14.0624,106.77,106.76,0.004978]
[1644595462392,18.7454,106.77,106.76,0.004978]
[1644595463491,14.0624,106.77,106.76,0.004978]
[1644595465096,14.0586,106.78,106.76,0.004978]
[1644595465297,50.6699,106.81,106.76,0.004978]
[1644595465896,4.682,106.83,106.76,0.004978]
[1644595466394,14.0528,106.83,106.76,46.59410233]
[1644595466594,14.0528,106.83,106.76,47.92374502]
[1644595466793,18.7338,106.83,106.76,46.59410233]
[1644595466999,14.0528,106.83,106.76,46.59410233]
[1644595467193,14.0528,106.83,106.76,47.92374502]
[1644595467993,14.0528,106.83,106.76,46.59410233]
[1644595468393,14.0528,106.83,106.76,47.92374502]
[1644595469295,4.681,106.85,106.76,47.92374502]
[1644595469495,4.681,106.87,106.77,3.7133106]
[1644595469695,4.681,106.87,106.78,45.87497144]
[1644595469896,4.681,106.87,106.77,8.63366791]
[1644595469897,26.04946791,106.88,106.77,1.32964269]
[1644595470097,4.68,106.86,106.77,1.32964269]
[1644595470399,16.43146791,106.86,106.77,1.32964269]
[1644595470696,4.68,106.85,106.76,15.38632069]
[1644595470900,4.68,106.85,106.77,46.68751681]
[1644595471695,14.0525,106.83,106.77,46.68751681]
[1644595471918,14.0525,106.83,106.77,51.36851681]
[1644595473602,14.0525,106.83,106.77,65.41971681]
[1644595473800,14.0509,106.84,106.77,65.41971681]
[1644595474003,18.7319,106.84,106.77,60.73871681]
[1644595474204,14.0509,106.84,106.77,65.41971681]
[1644595474608,4.681,106.86,106.78,1.32964269]
[1644595474807,14.0485,106.86,106.8,61.34964188]
[1644595475205,4.68,106.85,106.8,61.34964188]
[1644595475609,14.0485,106.86,106.8,61.34964188]
[1644595476610,14.047,106.87,106.8,61.34964188]
[1644595477007,4.68,106.86,106.8,61.34964188]
[1644595477907,16.42946791,106.88,106.8,61.34964188]
[1644595478109,52.3745,106.89,106.8,61.34964188]
[1644595478307,4.68,106.89,106.81,6.0]
[1644595478507,4.68,106.89,106.82,53.65948099]
[1644595479934,4.68,106.89,106.82,58.33848099]
[1644595481439,14.0434,106.9,106.82,58.33848099]
[1644595481835,14.0434,106.9,106.82,58.58848099]
[1644595482737,4.679,106.91,106.82,58.58848099]
[1644595482935,18.7213,106.91,106.82,66.85448099]
[1644595486337,2.38366791,106.9,106.82,8.266]
[1644595486540,14.0505,106.87,106.82,8.266]
[1644595486738,4.679,106.86,106.82,8.266]
[1644595486939,2.38366791,106.86,106.82,8.266]
[1644595487339,4.679,106.85,106.83,46.28322463]
[1644595487539,4.679,106.85,106.84,6.06439994]
[1644595487742,14.049,106.86,106.84,6.06439994]
[1644595487944,4.679,106.85,106.84,6.06439994]
[1644595488642,18.7245,106.88,106.84,6.06439994]
[1644595488843,18.7245,106.88,106.85,48.82898618]
[1644595489045,14.0455,106.88,106.85,48.82898618]
[1644595489248,14.0455,106.88,106.86,6.06439994]
[1644595489541,14.0455,106.88,106.82,8.266]
[1644595489743,4.679,106.87,106.82,8.266]
[1644595489943,14.0455,106.88,106.82,8.266]
[1644595490543,14.0455,106.88,106.83,40.32240394]
[1644595490746,4.679,106.87,106.83,40.32240394]
[1644595491443,14.0455,106.88,106.83,40.32240394]
[1644595492844,4.679,106.87,106.83,40.32240394]
[1644595493244,4.679,106.89,106.83,40.32240394]
[1644595493445,23.2445,106.91,106.83,40.32240394]
[1644595493446,41.4225,106.91,106.83,40.32240394]
[1644595494845,14.043,106.9,106.83,54.36480394]
[1644595495046,14.043,106.9,106.83,59.04280394]
[1644595495747,14.043,106.9,106.83,54.36480394]
[1644595497048,4.678,106.89,106.83,54.36480394]
[1644595497749,21.10596791,106.89,106.83,40.32240394]
[1644595497947,16.42796791,106.89,106.83,40.32240394]
[1644595498251,4.679,106.88,106.83,40.32240394]
[1644595498548,2.38366791,106.89,106.83,40.32240394]
[1644595498848,14.0474,106.87,106.83,40.32240394]
[1644595500252,14.0454,106.88,106.83,40.32240394]
[1644595500449,14.0454,106.88,106.8,4.678]
[1644595500655,4.679,106.87,106.8,4.678]
[1644595501051,4.679,106.87,106.78,6.00964269]
[1644595501252,14.0495,106.85,106.78,4.68]
[1644595501457,14.0495,106.85,106.79,37.2370405]
[1644595501853,74.06366791,106.84,106.76,0.004978]
[1644595502050,0.48,106.83,106.76,0.004978]
[1644595502251,18.181,106.82,106.76,0.004978]
[1644595502451,15.88366791,106.82,106.76,0.004978]
[1644595502651,13.5,106.82,106.76,0.004978]
[1644595502855,7.06566791,106.81,106.76,0.004978]
[1644595503074,20.56566791,106.81,106.76,0.004978]
[1644595503751,34.62366791,106.81,106.76,0.004978]
[1644595504354,23.1486,106.8,106.76,0.004978]
[1644595504553,4.682,106.79,106.76,0.004978]
[1644595504753,18.741,106.79,106.76,0.004978]
[1644595504955,34.62466791,106.79,106.76,0.004978]
[1644595505152,2.86366791,106.78,106.76,0.004978]
[1644595505352,18.182,106.77,106.76,0.004978]
[1644595505553,20.56566791,106.77,106.76,0.004978]
[1644595505755,18.182,106.77,106.76,0.004978]
[1644595506255,32.2468,106.77,106.76,0.004978]
[1644595506457,27.5648,106.77,106.76,0.004978]
[1644595506653,32.2478,106.77,106.76,0.004978]
[1644595507254,18.7478,106.77,106.76,0.004978]
[1644595508455,14.0648,106.77,106.76,0.004978]
[1644595509754,18.7478,106.77,106.76,0.004978]
[1644595511156,21.13146791,106.77,106.76,0.004978]
[1644595511557,34.63146791,106.77,106.76,0.004978]
[1644595516770,32.2478,106.77,106.76,0.004978]
[1644595517170,34.63146791,106.77,106.76,0.004978]
[1644595517373,32.2478,106.77,106.76,0.004978]
[1644595518072,27.5648,106.77,106.76,0.004978]
[1644595518672,29.94846791,106.77,106.76,0.004978]
[1644595519071,27.5648,106.77,106.76,0.004978]
[1644595520178,32.2478,106.77,106.76,0.004978]
[1644595520800,27.5648,106.77,106.76,0.004978]
[1644595521098,27.5648,106.77,106.7,0.024]
[1644595522705,32.2488,106.77,106.7,0.024]
[1644595523213,34.63246791,106.77,106.7,0.024]
[1644595523804,29.94846791,106.77,106.7,0.024]
[1644595524808,27.5648,106.77,106.7,0.024]
[1644595525108,4.684,106.76,106.7,0.024]
[1644595525406,14.0627,106.75,106.7,0.024]
[1644595525607,14.0627,106.75,106.69,44.1801331]
[1644595531314,14.066,106.73,106.68,0.024]
[1644595531513,14.066,106.73,106.67,0.024]
[1644595532314,8.91483188,106.72,106.67,0.024]
[1644595532515,14.0693,106.71,106.65,0.024]
[1644595532715,4.686,106.7,106.65,0.024]
[1644595532918,4.686,106.7,106.64,2.64639491]
[1644595533316,2.38366791,106.69,106.64,2.64639491]
[1644595533515,6.64595574,106.67,106.64,2.64639491]
[1644595533717,21.37606498,106.65,106.64,2.64639491]
[1644595534015,4.688,106.65,106.64,2.64639491]
[1644595534217,4.688,106.65,106.64,8.71079485]
[1644595534418,4.688,106.65,106.64,6.06439994]
[1644595534618,18.7648,106.65,106.64,6.06439994]
[1644595534818,14.0768,106.65,106.61,0.024]
[1644595535120,4.689,106.64,106.6,49.58303324]
[1644595535318,4.689,106.65,106.6,3.96433242]
[1644595536118,14.0769,106.64,106.6,3.96433242]
[1644595536320,4.689,106.67,106.6,3.96433242]
[1644595536518,4.689,106.67,106.61,0.024]
[1644595536719,4.689,106.67,106.6,3.46433242]
[1644595536920,4.689,106.67,106.6,0.024]
[1644595537121,14.075,106.65,106.6,0.024]
[1644595539223,4.689,106.64,106.59,47.31915992]
[1644595539455,18.7664,106.64,106.59,47.31915992]
[1644595539624,14.0774,106.64,106.59,47.31915992]
[1644595539925,14.0774,106.64,106.58,0.024]
[1644595540124,14.0774,106.64,106.58,6.024]
[1644595540426,4.689,106.63,106.58,6.024]
[1644595540625,18.7678,106.63,106.58,0.024]
[1644595540832,14.0788,106.63,106.58,0.024]
[1644595541024,7.55366791,106.62,106.54,11.31795869]
[1644595541226,13.5,106.61,106.56,0.024]
[1644595541525,4.691,106.6,106.55,0.024]
[1644595541724,35.13986791,106.6,106.51,0.574677]
[1644595541924,21.17917094,106.58,106.52,0.024]
[1644595542127,4.692,106.57,106.52,0.024]
[1644595542325,0.48,106.56,106.51,0.024]
[1644595542526,18.192,106.55,106.51,0.024]
[1644595542725,18.192,106.55,106.49,501.31631841]
[1644595542924,18.192,106.55,106.49,501.34031841]
[1644595543126,18.192,106.55,106.49,0.024]
[1644595543329,21.17917094,106.54,106.49,0.024]
[1644595543526,4.694,106.53,106.48,0.46939028]
[1644595543725,18.7882,106.54,106.48,0.46939028]
[1644595543926,18.7882,106.54,106.49,0.024]
[1644595544126,18.7882,106.54,106.48,0.46939028]
[1644595544727,32.2841,106.56,106.48,0.49339028]
[1644595544932,18.7841,106.56,106.49,42.03584794]
[1644595545229,18.7841,106.56,106.5,0.024]
[1644595546427,34.66776791,106.56,106.5,0.024]
[1644595546826,35.14776791,106.56,106.5,0.024]
[1644595547027,44.99595072,106.56,106.5,0.024]
[1644595547228,22.95569391,106.55,106.5,0.024]
[1644595547432,4.692,106.54,106.5,0.024]
[1644595547728,58.39236791,106.54,106.48,0.46939028]
[1644595548435,5.06632681,106.53,106.48,0.46939028]
[1644595548633,18.7893,106.52,106.48,0.46939028]
[1644595549232,18.7893,106.52,106.43,0.024]
[1644595549233,122.0,106.51,106.46,0.024]
[1644595549436,122.0,106.51,106.44,0.024]
[1644595549437,4.695,106.5,106.44,0.024]
[1644595549633,32.2943,106.5,106.44,0.024]
[1644595550134,103.0,106.48,106.38,1.7779366]
[1644595550335,103.0,106.48,106.39,0.024]
[1644595550336,4.697,106.47,106.39,0.024]
[1644595550734,14.1041,106.47,106.39,0.024]
[1644595551136,22.95569391,106.46,106.39,49.42909299]
[1644595551336,22.95569391,106.46,106.4,0.024]
[1644595551534,27.65269391,106.46,106.4,0.024]
[1644595552136,41.75779391,106.46,106.4,0.024]
[1644595552437,13.98,106.45,106.4,0.024]
[1644595552638,4.698,106.44,106.39,3.67801]
[1644595552835,13.5,106.43,106.39,3.67801]
[1644595553136,4.698,106.43,106.39,3.67801]
[1644595553337,65.2341,106.45,106.39,3.67801]
[1644595553543,18.8071,106.43,106.39,3.67801]
[1644595553737,14.1091,106.43,106.39,3.70201]
[1644595553937,18.198,106.45,106.39,3.67801]
[1644595554140,4.698,106.45,106.39,3.67801]
[1644595554754,4.698,106.45,106.39,39.65337807]
[1644595555153,4.698,106.45,106.23,34.07051126]
[1644595555154,2.0,106.43,106.23,34.07051126]
[1644595555355,2.0,106.43,106.21,31.56688267]
[1644595555356,0.41250388,106.29,106.24,0.024]
[1644595555562,19.6,106.23,106.18,3.33117]
[1644595555755,0.82500335,106.23,106.22,0.024]
[1644595555954,0.82500335,106.23,106.22,3.03219997]
[1644595556158,0.32500335,106.23,106.22,3.03219997]
[1644595556357,13.82500335,106.23,106.19,21.24113997]
[1644595556557,13.82500335,106.23,106.19,20.74113997]
[1644595557455,13.82500335,106.23,106.19,17.05619997]
[1644595557656,13.82500335,106.23,106.19,16.55619997]
[1644595558256,13.82500335,106.23,106.19,60.93881882]
[1644595558458,4.707,106.22,106.19,60.93881882]
[1644595558659,16.53219997,106.21,106.19,16.05619997]
[1644595559260,13.82500335,106.23,106.2,3.03219997]
[1644595559460,0.32500335,106.23,106.2,3.03219997]
[1644595559659,0.32500335,106.23,106.21,38.11328861]
[1644595561059,0.32500335,106.23,106.19,16.05619997]
[1644595561460,20.5,106.26,106.19,16.05619997]
[1644595561660,13.5,106.25,106.2,0.024]
[1644595561862,13.5,106.25,106.19,16.05619997]
[1644595562060,4.707,106.24,106.19,53.65441221]
[1644595562661,13.5,106.25,106.19,53.65441221]
[1644595563163,13.5,106.25,106.19,16.05619997]
[1644595563362,15.88366791,106.25,106.19,16.05619997]
[1644595563562,4.707,106.24,106.19,16.05619997]
[1644595563765,13.5,106.23,106.19,16.05619997]
[1644595563963,4.707,106.22,106.19,16.05619997]
[1644595564164,0.77999999,106.21,106.19,16.05619997]
[1644595564364,0.77999999,106.21,106.19,58.1533698]
[1644595564763,13.5,106.25,106.19,16.05619997]
[1644595564965,4.707,106.24,106.2,0.024]
[1644595565264,4.707,106.24,106.14,0.024]
[1644595565464,0.48,106.22,106.14,0.024]
[1644595565666,18.688,106.21,106.14,0.024]
[1644595565865,13.5,106.21,106.14,44.66635519]
[1644595566064,13.5,106.21,106.15,0.024]
[1644595566268,4.708,106.2,106.15,0.024]
[1644595566466,0.48,106.19,106.14,44.66635519]
[1644595566764,13.5,106.18,106.14,44.64235519]
[1644595566969,13.5,106.19,106.14,44.66635519]
[1644595567264,18.208,106.21,106.14,44.64235519]
[1644595567467,13.5,106.21,106.15,0.024]
[1644595567664,4.708,106.2,106.15,0.024]
[1644595567865,4.708,106.2,106.14,44.66635519]
[1644595568364,3.66681,106.19,106.14,44.66635519]
[1644595568566,3.66681,106.19,106.15,0.024]
[1644595568764,4.708,106.23,106.14,44.64235519]
[1644595568968,4.708,106.23,106.15,0.024]
[1644595569366,11.31,106.22,106.15,0.024]
[1644595569569,4.708,106.21,106.15,0.024]
[1644595569765,11.31,106.2,106.15,0.024]
[1644595569965,11.31,106.2,106.14,44.66635519]
[1644595569966,4.708,106.19,106.14,44.66635519]
[1644595570168,4.708,106.19,106.13,0.47093825]
[1644595570368,0.48,106.18,106.13,0.47093825]
[1644595570570,4.71,106.17,106.13,0.47093825]
[1644595570768,11.79,106.16,106.02,58.238]
[1644595570969,0.48,106.15,106.06,0.024]
[1644595571166,0.48,106.11,106.02,35.53687618]
[1644595571367,0.48,106.1,106.02,35.51287618]
[1644595571569,11.79,106.1,106.03,0.024]
[1644595571770,17.69366791,106.1,106.03,0.024]
[1644595571966,0.48,106.08,106.02,30.53687618]
[1644595572269,5.194,106.09,106.02,30.53687618]
[1644595572468,11.31,106.07,106.02,30.53687618]
[1644595572667,5.194,106.06,106.02,30.53687618]
[1644595572869,11.79,106.06,105.92,11.31]
[1644595573167,0.48,106.04,105.9,2.38366791]
[1644595573372,7.09966791,106.05,105.9,2.38366791]
[1644595573373,0.48,106.02,105.9,2.38366791]
[1644595573766,4.718,106.01,105.89,46.51771192]
[1644595573967,4.718,106.01,105.88,68.92650114]
[1644595573968,4.718,106.01,105.91,48.17476108]
[1644595574172,11.31,106.03,105.91,48.17476108]
[1644595574467,4.719,106.05,105.92,2.38366791]
[1644595574667,4.719,106.05,105.93,44.17965331]
[1644595574871,16.026,106.07,105.93,44.17965331]
[1644595575068,16.026,106.07,105.94,6.0]
[1644595575269,16.026,106.07,105.95,35.16708495]
[1644595575670,16.026,106.07,105.95,37.55075286]
[1644595575868,16.026,106.07,105.96,2.38366791]
[1644595576070,11.31,106.07,105.97,38.27014275]
[1644595576271,4.716,106.11,105.97,38.27014275]
[1644595576470,16.025,106.09,105.98,2.38366791]
[1644595576673,11.31,106.09,105.99,48.45842717]
[1644595576869,4.69495,106.11,105.99,48.45842717]
[1644595577076,4.69495,106.11,106.0,2.38366791]
[1644595577270,11.31,106.12,106.01,40.58530544]
[1644595577469,4.714,106.11,106.01,40.58530544]
[1644595577672,4.714,106.11,106.02,2.38366791]
[1644595577876,4.714,106.11,106.03,40.87712475]
[1644595578271,4.714,106.11,106.03,43.26079266]
[1644595579274,11.31,106.13,106.03,43.26079266]
[1644595579475,4.713,106.12,106.03,43.26079266]
[1644595579974,4.713,106.15,106.03,43.26079266]
[1644595580177,4.712,106.16,106.03,54.57079266]
[1644595580774,5.192,106.16,106.03,43.26079266]
[1644595580974,4.712,106.16,106.03,43.26079266]
[1644595581174,4.712,106.16,106.03,54.57079266]
[1644595581583,5.192,106.16,106.03,52.18712475]
[1644595581879,16.502,106.16,106.03,40.87712475]
[1644595582077,0.48,106.14,106.03,40.87712475]
[1644595582276,5.193,106.13,106.03,43.26079266]
[1644595582474,0.48,106.12,106.03,40.87712475]
[1644595582674,5.193,106.11,106.03,40.87712475]
[1644595582875,4.0,106.1,106.03,40.87712475]
[1644595583978,15.31,106.1,106.03,40.87712475]